{"text_format":"1","workbook":"xlsx","n_sheets":4,"sheets":["Тренировка","1","2","Подпись"],"not_rendered":{"charts":0,"images":0,"macros":1,"external_links":0,"defined_names":0,"comments":0,"pivot_tables":0},"unopened":[],"bounds":{"document_bytes":16777216,"sheet_cells":100000,"rows_first":2000,"rows_last":500,"rows_between":2000,"halvings":0,"cell_chars":16384,"cell_head_chars":4096},"cells_cut":0,"cells_raw":0,"read":"whole","date_system":"1900"}

{"sheet":"Тренировка","index":0,"n_rows":79,"n_cols":7,"rows_kept":79,"cut":false,"hidden":false,"merged":[]}
["1.","Функция СУММ. Сумма от всех чисел в диапазоне"]
[]
[null,1,null,{"$f":"SUM(B3:B9)","v":28},null,"← попробуй."]
[null,2]
[null,3]
[null,4]
[null,5]
[null,6]
[null,7]
[]
[]
["2.","Функция СРЗНАЧ. Среднее от всех чисел в диапазоне"]
[]
[null,1,null,{"$f":"AVERAGE(B14:B20)","v":4},null,"← попробуй."]
[null,2]
[null,3]
[null,4]
[null,5]
[null,6]
[null,7]
[]
["3.","Арифметические выражения"]
[]
[null,"Арифметические операции:"]
[null,"Знак операции","Значение"]
[null,"+","Сложение"]
[null,"-","Вычитание (отрицание, если унарный)"]
[null,"*","Умножение"]
[null,"/","Деление"]
[null,"%","Процент (разделить на 100)"]
[null,"^","Возвести в степень"]
[]
[null,"Результат арифметического выражения - число, выравнивается по правому краю."]
[]
[null,"Цена","Количество","Стоимость","Стоимость"]
[null,120,7,{"$f":"B36*C36","v":840},null,"← попробуй."]
[]
[]
["4.","Текстовые выражения"]
[]
[null,"Результат текстового выражения - текст, выравнивается по левому краю."]
[]
[null,"& - знак текстовой операции \"сцепить\" строки. "]
[]
[null,"Текстовые константы (литералы) должны быть указаны в двойных кавычках:"]
[null,"=\"Текстовая константа\""]
[]
[null,"Имя","Фамилия","Имя Фамилия","Стоимость"]
[null,"Евгений","Степашин",{"$f":"B49&\" \"&C49","v":"Евгений Степашин"},null,"← попробуй."]
[null,"Елизавета","Каркушина",{"$f":"B50&\" \"&C50","v":"Елизавета Каркушина"}]
[null,"Полина","Андреева","Полина Андреева"]
[]
[]
["5.","Логические выражения"]
[]
[null,"Знаки логических операций:"]
[null,"= равенство (проверка идентичности);"]
[null,"<> не равно;"]
[null,"> больше;"]
[null,">= больше либо равно;"]
[null,"< меньше;"]
[null,"<= меньше либо равно."]
[]
[null,"Результат логического выражения - логическое значение (ИСТИНА или ЛОЖЬ), выравнивается по центру."]
[]
[null,"Имя","Фамилия","Средняя оценка","Хорошо учится (средняя оценнка > 4,3)","Хорошо учится (средняя оценнка > 4,3)"]
[null,"Евгений","Степашин",4.5999999999999996,{"$f":"D67>4.3","v":true}]
[null,"Елизавета","Каркушина",3.4,{"$f":"D68>4.3","v":false}]
[null,"Андрей","Барашин",4.0999999999999996,false]
[]
[]
["6.","Некоторые полезные знания"]
[]
[null,"Выручка - сколько денег принесли компании клиенты, продажи компании, сумма всех заказов…"]
[null,"Издержки или затраты - сколько компания потратила на аренду, зарплату сотрудникам, покупку товара…"]
[null,"Прибыль  = Выручка - Издержки. Если прибыль получилась отрицательной, это называют Убытком."]
[]
[null,"Выручка","Затраты","Прибыль","Получили прибыль","Прибыль","Получили прибыль"]
[null,900,1200,{"$f":"B79-C79","v":-300},{"$f":"D79>=0","v":false}]

{"sheet":"1","index":1,"n_rows":157,"n_cols":5,"rows_kept":157,"cut":false,"hidden":false,"merged":[]}
["Элементарные логические выражения"]
["1А","У Васи день рождения. Друзья подарили ему подарки. "]
[null,"Известно, что Вася любит только дорогие подарки, стоимостью от 1000 рублей."]
[null,"Отметь подарки, которые Васе понравятся. "]
[]
[null,"Друг","Цена подарка","Этот подарок понравится Васе (РЕШЕНИЕ)","Попробуй самостоятельно ↓"]
[null,"Маша",1020,{"$f":"C7>=1000","v":true}]
[null,"Даша",470,false]
[null,"Саша",1160,true]
[null,"Петя",750,false]
[null,"Вова",440,false]
[null,"Егор",820,false]
[null,"Игорь",1090,true]
[null,"Максим",590,false]
[null,"Андрей",210,false]
[null,"Павел",1080,true]
[null,"Юля",230,false]
[]
["1Б","Директор компании решил уволить всех бездельников. "]
[null,"Бездельниками он считает всех тех, кто часто заходит в VK на рабочем месте."]
[null,"Системный администратор предприятия помог занести данные о сотрудниках в таблицу."]
[]
[null,"Сотрудник","Заходит в VK","Будет уволен (РЕШЕНИЕ)","Попробуй самостоятельно ↓"]
[null,"Миша","очень редко",{"$f":"C24=\"часто\"","v":false}]
[null,"Дима","не заходит",{"$f":"C25=\"часто\"","v":false}]
[null,"Саша","очень редко",false]
[null,"Петя","часто",true]
[null,"Вова","редко",false]
[null,"Егор","редко",false]
[null,"Игорь","редко",false]
[null,"Максим","не заходит",false]
[null,"Андрей","не работает за компьютером",false]
[null,"Павел","очень редко",false]
[null,"Юлиан","очень редко",false]
[]
["1В","Учитель физкультуры принимает ребят в спортивную секцию, если они могут подтянутся больше 10 раз включительно."]
[null,"Отметь тех ребят, которые могут попасть в спортивную секцию."]
[]
[null,"Ученик","Подтягивается раз","Возьмут в спортивную секцию"]
[null,"Миша",12]
[null,"Дима",9]
[null,"Саша",4]
[null,"Петя",13]
[null,"Вова",13]
[null,"Егор",15]
[null,"Игорь",11]
[null,"Максим",12]
[null,"Андрей",3]
[null,"Павел",16]
[null,"Юлиан",10]
[]
[]
["1Г","Вова открыл свой бизнес по продаже зелени в ларьке у метро."]
[null,"Получил ли он прибыль в указанные дни?"]
[]
[null,"Дата","Затраты на аренду и на покупку зелени","Вовина выручка (сколько денег получил)","Получена прибыль?"]
[null,"2015-10-01",1000,1400]
[null,"2015-10-02",1000,100]
[null,"2015-10-03",1000,600]
[null,"2015-10-04",1000,800]
[null,"2015-10-05",1000,200]
[null,"2015-10-06",1000,2000]
[null,"2015-10-07",1000,1400]
[null,"2015-10-08",1000,900]
[null,"2015-10-09",1000,800]
[null,"2015-10-10",1000,600]
[null,"2015-10-11",1000,800]
[null,"2015-10-12",1000,1700]
[null,"2015-10-13",1000,1500]
[null,"2015-10-14",1000,100]
[null,"2015-10-15",1000,1700]
[null,"2015-10-16",1000,100]
[null,"2015-10-17",1000,1700]
[null,"2015-10-18",1000,1500]
[null,"2015-10-19",1000,1900]
[null,"2015-10-20",1000,700]
[null,"2015-10-21",1000,1000]
[null,"2015-10-22",1000,1100]
[null,"2015-10-23",1000,900]
[null,"2015-10-24",1000,600]
[null,"2015-10-25",1000,1900]
[null,"2015-10-26",1100,1300]
[null,"2015-10-27",1100,400]
[null,"2015-10-28",1100,400]
[null,"2015-10-29",1100,900]
[null,"2015-10-30",1100,1800]
[null,"2015-10-31",1100,600]
[]
[]
["1Д","Босс распорядился выписать премию всем подчиненным, которые отработали на него 10 лет или больше."]
[null,"Отметь тех, кто получит премию."]
[]
[null,"Сотрудник","Трудовой стаж (лет)","Получит премию"]
[null,"Миша",3]
[null,"Дима",11]
[null,"Саша",2]
[null,"Петя",7]
[null,"Вова",11]
[null,"Егор",4]
[null,"Игорь",9]
[null,"Максим",8]
[null,"Андрей",9]
[null,"Павел",9]
[null,"Юлиан",8]
[]
[]
[]
["1Е","Мама решила выбросить из холодильника те продукты, срок годности которых скоро истекает или уже истек."]
[null,"Отметь те продукты, до окончания срока годности у которых осталось меньше 2 дней."]
[]
[null,"Продукт","Осталось дней до окончания срока годности","Будет выброшено"]
[null,"Сыр",2]
[null,"Колбаса",-12]
[null,"Кефир",-18]
[null,"Масло",16]
[null,"Молоко",24]
[]
[]
["1Ж","Папа хвастается маме, что с каждым месяцем он зарабатывает и приносит в дом все больше и больше денег."]
[null,"Отметь значением ИСТИНА те строки, когда это действительно так и значением ЛОЖЬ когда наоборот."]
[]
[null,"Месяц","Зарплата в текущем месяце","Зарплата в предыдущем месяце","Папа заработал больше"]
[null,"Январь",96000,78000]
[null,"Февраль",98000,{"$f":"C123","v":96000}]
[null,"Март",112000,{"$f":"C124","v":98000}]
[null,"Апрель",117000,112000]
[null,"Май",110000,117000]
[null,"Июнь",102000,110000]
[null,"Июль",107000,102000]
[null,"Август",120000,107000]
[null,"Сентябрь",143000,120000]
[null,"Октябрь",146000,143000]
[null,"Ноябрь",154000,146000]
[null,"Декабрь",148000,154000]
[]
[]
["1И","Макдоналдс принимает на работу новых сотрудников."]
[null,"Из-за тяжелой работы, вредной еды и низкой зарплаты все \"старые\" сотрудники уволились."]
[null,"Менеджер по персоналу примает всех желающих, но не может нарушить закон и принять на работу лиц моложе 16 лет."]
[null,"Помоги ей отметить тех, кого можно взять на работу."]
[]
[null,"Кандидат","Возраст","Идет на работу в Макдоналдс"]
[null,"Миша",23]
[null,"Дима",12]
[null,"Дядя Саша",47]
[null,"Петя",26]
[null,"Вова",16]
[null,"Женя",17]
[null,"Игорь",19]
[null,"Максим",12]
[null,"Андрей",14]
[null,"Павел",15]
[null,"Юлиан",17]
[]
[]
[]
["1К","Придумай свое задание и реши его."]

{"sheet":"2","index":2,"n_rows":105,"n_cols":9,"rows_kept":105,"cut":false,"hidden":false,"merged":[]}
["Логические и арифметические выражения"]
[]
["1А","Мама Васи решила экономить. Теперь она будет покупать  товары только дешевле 100 рублей за килограмм."]
[null,"Отметь те товары, которые мама покупать не будет."]
[]
[null,"Товар","Вес (грамм)","Стоимость (руб.)","Цена (руб.) за 1 кг","Мама купит"]
[null,"Колбаса",900,560]
[null,"Хлеб",400,26]
[null,"Яблоки",3500,220]
[null,"Повидло",400,98]
[null,"Молоко",950,55]
[null,"Рыба",700,180]
[null,"Творог",200,50]
[]
["1Б","Босс распорядился уволить всех подчиненных, отработавших на него меньше 1 года включительно."]
[null,"Отметь тех, кто будет уволен."]
[]
[null,"Дата","Трудовой стаж (месяцев)","Будет уволен"]
[null,"Миша",35]
[null,"Дима",7]
[null,"Саша",5]
[null,"Петя",2]
[null,"Вова",26]
[null,"Егор",9]
[null,"Игорь",34]
[null,"Максим",12]
[null,"Андрей",10]
[null,"Павел",33]
[null,"Юлиан",16]
[]
[]
["1В","Считается, что ученик учится плохо, если его средняя оценка 2,8 или меньше."]
[null,"Отметь тех, кто учится плохо."]
[]
[null,"Продукт","Математика","Физика","Химия","Информатика","Русский язык","Средняя оценка","Учится плохо"]
[null,"Миша",3,5,5,5,4]
[null,"Дима",5,4,5,2,2]
[null,"Саша",4,3,2,5,5]
[null,"Петя",3,2,2,5,2]
[null,"Вова",3,3,4,5,3]
[null,"Егор",3,2,2,3,5]
[null,"Игорь",2,2,2,2,4]
[null,"Максим",3,2,3,2,3]
[null,"Андрей",4,2,2,5,5]
[null,"Павел",5,5,3,5,4]
[null,"Юлиан",4,3,3,3,4]
[]
[]
["1Г","Миша открыл свой цветочный магазин."]
[null,"Получит ли он прибыль к концу месяца?"]
[]
[null,"Стоимость 1 цветка для покупателя = 85 руб."]
[null,"Затраты Васи на покупку 1 цветка = 25 рублей."]
[]
[null,"Дата","Затраты на аренду","Цветов продано","Затраты","Выручка","Прибыль"]
[null,"2015-10-01",1000,33]
[null,"2015-10-02",1000,44]
[null,"2015-10-03",1000,77]
[null,"2015-10-04",1000,88]
[null,"2015-10-05",1000,187]
[null,"2015-10-06",1000,165]
[null,"2015-10-07",1000,143]
[null,"2015-10-08",1000,187]
[null,"2015-10-09",1000,165]
[null,"2015-10-10",1000,44]
[null,"2015-10-11",1000,44]
[null,"2015-10-12",1000,22]
[null,"2015-10-13",1000,132]
[null,"2015-10-14",1000,121]
[null,"2015-10-15",1000,44]
[null,"2015-10-16",1000,132]
[null,"2015-10-17",1000,66]
[null,"2015-10-18",1000,33]
[null,"2015-10-19",1000,121]
[null,"2015-10-20",1000,121]
[null,"2015-10-21",1000,99]
[null,"2015-10-22",1000,22]
[null,"2015-10-23",1000,66]
[null,"2015-10-24",1000,99]
[null,"2015-10-25",1000,66]
[null,"2015-10-26",1100,121]
[null,"2015-10-27",1100,55]
[null,"2015-10-28",1100,154]
[null,"2015-10-29",1100,22]
[null,"2015-10-30",1100,44]
[null,"2015-10-31",1100,154]
[null,null,null,null,null,"Итого:"]
[]
[]
["1Д","Сравни площади двух прямоугольников. "]
[]
[null,"Сторона А первого","Сторона B первого","Сторона А второго","Сторона B второго","Площадь первого","Площадь второго","Площадь первого больше"]
[null,4,6,5,10]
[null,5,4,5,5]
[null,3,4,3,8]
[null,7,6,6,10]
[null,4,8,10,9]
[null,10,7,3,6]
[null,7,4,8,8]
[null,7,7,4,9]
[null,7,7,5,3]
[null,10,7,5,9]
[]
[]
["1Е","Придумай свое задание и реши его."]

{"sheet":"Подпись","index":3,"n_rows":0,"n_cols":0,"rows_kept":0,"cut":false,"hidden":true,"merged":[]}